bitfinex-derivatives/quotes_BTCF0:USTF0_20250709
["timestamp","ask_amount","ask_price","bid_price","bid_amount"]
[1752075167464,0.184377,109050.0,109040.0,0.61162791]
[1752075167764,0.184377,109050.0,109040.0,0.64948791]
[1752075167957,0.811897,109050.0,109040.0,0.64948791]
[1752075168560,0.827637,109050.0,109040.0,0.64948791]
[1752075168761,1.14576837,109050.0,109040.0,0.64948791]
[1752075170262,1.14576837,109050.0,109040.0,0.66352414]
[1752075171163,1.13002837,109050.0,109040.0,0.66352414]
[1752075171362,0.50250837,109050.0,109040.0,0.66352414]
[1752075171567,1.12998837,109050.0,109040.0,0.66352414]
[1752075174064,0.811857,109050.0,109040.0,0.66352414]
[1752075174864,0.811857,109050.0,109040.0,0.64948791]
[1752075175060,1.14572837,109050.0,109040.0,0.64948791]
[1752075177762,0.827597,109050.0,109040.0,0.64948791]
[1752075177962,1.14572837,109050.0,109040.0,0.64948791]
[1752075178970,1.14572837,109050.0,109040.0,0.44350411]
[1752075179172,1.48704974,109050.0,109040.0,0.42823411]
[1752075179371,1.51934974,109050.0,109040.0,0.00383411]
[1752075179682,1.58729825,109050.0,109040.0,0.00383411]
[1752075187175,0.95981825,109050.0,109040.0,0.00383411]
[1752075187381,1.58737825,109050.0,109040.0,0.00383411]
[1752075190376,1.57270825,109050.0,109040.0,0.00383411]
[1752075192474,0.1833938,109040.0,109030.0,0.00183427]
[1752075192665,0.89816654,109040.0,109030.0,0.00183427]
[1752075192870,0.93327454,109040.0,109030.0,0.00183427]
[1752075193273,0.1834106,109030.0,109020.0,0.3608]
[1752075193472,1.58180893,109030.0,109020.0,0.3608]
[1752075194075,1.60606893,109030.0,109020.0,0.3608]
[1752075194370,0.1834275,109020.0,109010.0,0.41202143]
[1752075194678,0.89820024,109020.0,109010.0,0.41202143]
[1752075195373,0.89820024,109020.0,109010.0,0.3608]
[1752075195677,0.92446024,109020.0,109010.0,0.3618]
[1752075195977,0.92446024,109020.0,109010.0,0.47116805]
[1752075196968,0.92446024,109020.0,109010.0,0.3618]
[1752075197372,0.92546024,109020.0,109010.0,0.3618]
[1752075197679,0.93317936,109020.0,109010.0,0.3618]
[1752075197878,0.96825459,109020.0,109010.0,0.3618]
[1752075198077,0.93317936,109020.0,109010.0,0.3618]
[1752075198281,0.90207936,109020.0,109010.0,0.37682]
[1752075198482,1.24641686,109020.0,109010.0,0.5925643]
[1752075198677,1.20634686,109020.0,109010.0,0.6226643]
[1752075198977,0.50455887,109020.0,109010.0,0.6226643]
[1752075199175,1.13243887,109020.0,109010.0,0.6226643]
[1752075199478,1.13247887,109020.0,109010.0,0.6226643]
[1752075199974,1.13247887,109020.0,109010.0,0.63672119]
[1752075200576,0.50455887,109020.0,109010.0,0.63672119]
[1752075200765,1.13247887,109020.0,109010.0,0.63672119]
[1752075201371,0.8143875,109020.0,109010.0,0.96291897]
[1752075201769,0.003,109020.0,109010.0,0.6447876]
[1752075201977,0.63112,109020.0,109010.0,0.6447876]
[1752075202279,0.63112,109020.0,109010.0,1.14638297]
[1752075202480,0.003,109020.0,109010.0,1.14638297]
[1752075202681,0.63112,109020.0,109010.0,0.96291897]
[1752075203176,0.63112,109020.0,109010.0,1.14638297]
[1752075203378,0.003,109020.0,109010.0,1.41960297]
[1752075203578,0.64557837,109030.0,109020.0,0.1834275]
[1752075203767,0.01753837,109030.0,109020.0,0.97705576]
[1752075203966,0.01753837,109030.0,109020.0,1.16050376]
[1752075204278,0.29220981,109050.0,109040.0,0.1833938]
[1752075204578,0.92044981,109050.0,109040.0,0.95729069]
[1752075204779,0.92044981,109050.0,109040.0,1.01959069]
[1752075204975,0.93625981,109050.0,109040.0,1.0055338]
[1752075205278,0.29220981,109050.0,109040.0,1.0055338]
[1752075205470,1.25451118,109050.0,109040.0,1.0055338]
[1752075205671,1.24370118,109050.0,109040.0,1.0065338]
[1752075207083,1.24670118,109050.0,109040.0,1.0065338]
[1752075214589,1.27096118,109050.0,109040.0,0.9833138]
[1752075215292,1.24670118,109050.0,109040.0,0.9833138]
[1752075216395,0.61834118,109050.0,109040.0,0.9833138]
[1752075216595,1.26191118,109050.0,109040.0,0.9833138]
[1752075217495,1.24610118,109050.0,109040.0,0.9833138]
[1752075217795,1.24602118,109050.0,109040.0,0.9833138]
[1752075218292,0.92788981,109050.0,109040.0,0.9833138]
[1752075218595,1.24602118,109050.0,109040.0,1.0075938]
[1752075224498,1.24554118,109050.0,109040.0,1.0075938]
[1752075226695,1.24554118,109050.0,109040.0,1.01556304]
[1752075229700,0.57249398,109050.0,109040.0,1.01556304]
[1752075230005,0.88144261,109050.0,109040.0,1.01556304]
[1752075230205,0.89715261,109050.0,109040.0,1.01556304]
[1752075231295,1.21528398,109050.0,109040.0,1.01556304]
[1752075231602,1.21528398,109050.0,109040.0,1.0075938]
[1752075232305,1.24628398,109050.0,109040.0,1.0075938]
[1752075233103,1.24628398,109050.0,109040.0,1.11696185]
[1752075236604,1.24328398,109050.0,109040.0,1.11696185]
[1752075236805,1.24428398,109050.0,109040.0,1.11696185]
[1752075237207,1.23928398,109050.0,109040.0,1.11596185]
[1752075237405,1.24128398,109050.0,109040.0,1.11696185]
[1752075237907,0.24936261,109050.0,109040.0,1.43509322]
[1752075238095,0.85707541,109050.0,109040.0,1.43509322]
[1752075238511,0.85707541,109050.0,109040.0,1.11696185]
[1752075239106,0.85707541,109050.0,109040.0,1.14456322]
[1752075239298,0.85707541,109050.0,109040.0,1.0075938]
[1752075240404,0.85707541,109050.0,109040.0,1.32572517]
[1752075243110,0.85707541,109050.0,109040.0,1.11695107]
[1752075244214,0.23003541,109050.0,109040.0,1.11695107]
[1752075244401,0.85703541,109050.0,109040.0,1.19172273]
[1752075244707,0.67365841,109050.0,109040.0,1.40049683]
[1752075245010,0.85703541,109050.0,109040.0,1.40049683]
[1752075245410,0.85703541,109050.0,109040.0,1.50980836]
[1752075247216,0.85703541,109050.0,109040.0,1.50977573]
[1752075251311,0.85703541,109050.0,109040.0,1.19164436]
[1752075251612,0.839907,109050.0,109040.0,1.19164436]
[1752075251813,0.839907,109050.0,109040.0,1.21079194]
[1752075255317,0.839907,109050.0,109040.0,1.18651194]
[1752075255919,1.15803837,109050.0,109040.0,1.18651194]
[1752075257221,0.839907,109050.0,109040.0,1.21148194]
[1752075262842,1.15793277,109050.0,109040.0,1.52950771]
[1752075263127,1.15793277,109050.0,109040.0,1.84753348]
[1752075263328,1.15793277,109050.0,109040.0,1.73825458]
[1752075263329,0.839907,109050.0,109040.0,1.73825458]
[1752075263625,0.839907,109050.0,109040.0,1.10220304]
[1752075263626,1.15793277,109050.0,109040.0,1.10220304]
[1752075263924,1.15793277,109050.0,109040.0,1.42022881]
[1752075264225,1.15793277,109050.0,109040.0,1.10220304]
[1752075264428,1.15793277,109050.0,109040.0,1.42022881]
[1752075265126,1.15793277,109050.0,109040.0,1.39525881]
[1752075265426,1.19083277,109050.0,109040.0,1.39525881]
[1752075265614,1.21573277,109050.0,109040.0,1.06221304]
[1752075265812,1.53375854,109050.0,109040.0,0.95604148]
[1752075266014,1.56685854,109050.0,109040.0,0.95604148]
[1752075266414,1.24883277,109050.0,109040.0,0.97225148]
[1752075266618,1.24883277,109050.0,109040.0,0.95604148]
[1752075266825,1.2489109,109050.0,109040.0,0.95604148]
[1752075267027,1.2488309,109050.0,109040.0,0.95604148]
[1752075267229,1.2488309,109050.0,109040.0,0.77264758]
[1752075267419,1.2488309,109050.0,109040.0,0.97225138]
[1752075267719,1.2488309,109050.0,109040.0,0.95604138]
[1752075267926,1.2488309,109050.0,109040.0,0.97225138]
[1752075269216,1.5669348,109050.0,109040.0,0.7226]
[1752075269726,1.5669348,109050.0,109040.0,0.83201924]
[1752075269933,1.6022502,109050.0,109040.0,0.7226]
[1752075270630,0.1833937,109040.0,109030.0,0.3608]
[1752075270928,0.5751876,109040.0,109030.0,0.3608]
[1752075271129,0.6063876,109040.0,109030.0,0.3608]
[1752075272420,0.5656976,109040.0,109030.0,0.3608]
[1752075272628,0.6063876,109040.0,109030.0,0.3608]
[1752075273025,0.64165958,109040.0,109030.0,0.3608]
[1752075273226,0.64165958,109040.0,109030.0,0.3618]
[1752075273518,0.6172076,109040.0,109030.0,0.3628]
[1752075274234,0.6172076,109040.0,109030.0,0.37688957]
[1752075276127,0.66986932,109040.0,109030.0,0.01608957]
[1752075276325,1.03066932,109040.0,109030.0,0.01608957]
[1752075277127,1.34877322,109040.0,109030.0,0.01608957]
[1752075277426,1.03066932,109040.0,109030.0,0.01608957]
[1752075278536,1.34877322,109040.0,109030.0,0.01608957]
[1752075278836,1.34877322,109040.0,109030.0,7e-08]
[1752075279029,0.99530605,109040.0,109030.0,7e-08]
[1752075279229,0.1834105,109030.0,109020.0,0.3608]
[1752075279431,1.2083644,109030.0,109020.0,0.3608]
[1752075279625,1.2319044,109030.0,109020.0,0.3608]
[1752075280627,1.2319044,109030.0,109020.0,0.3658]
[1752075280628,1.2329044,109030.0,109020.0,0.3658]
[1752075282134,1.5510083,109030.0,109020.0,0.3658]
[1752075285028,1.2329044,109030.0,109020.0,0.3658]
[1752075286339,1.30810228,109030.0,109020.0,0.3658]
[1752075288837,1.30810228,109030.0,109020.0,0.3981]
[1752075289040,1.30818228,109030.0,109020.0,0.3981]
[1752075289241,1.27608228,109030.0,109020.0,0.3981]
[1752075289734,1.27608228,109030.0,109020.0,0.41376]
[1752075290743,1.26079228,109030.0,109020.0,0.3981]
[1752075290939,1.26079228,109030.0,109020.0,0.41214106]
[1752075294542,0.63375228,109030.0,109020.0,0.64312836]
[1752075294738,1.20575228,109030.0,109020.0,0.45970106]
[1752075295044,1.22929228,109030.0,109020.0,0.45970106]
[1752075295444,1.26468166,109030.0,109020.0,0.64312836]
[1752075295646,1.24114166,109030.0,109020.0,0.64312836]
[1752075295839,1.26468166,109030.0,109020.0,0.64312836]
[1752075296244,1.26468166,109030.0,109020.0,0.64314546]
[1752075296650,1.24114166,109030.0,109020.0,0.62748546]
[1752075296848,1.26460166,109030.0,109020.0,0.64314546]
[1752075297146,0.61310166,109030.0,109020.0,0.64314546]
[1752075297343,1.27989166,109030.0,109020.0,0.64314546]
[1752075297540,0.59300228,109030.0,109020.0,0.64314546]
[1752075297745,0.8278605,109030.0,109020.0,0.9471912]
[1752075298044,0.8278605,109030.0,109020.0,0.6290873]
[1752075298349,0.8387205,109030.0,109020.0,0.6290873]
[1752075299140,0.2105205,109030.0,109020.0,0.6290873]
[1752075299346,0.8387205,109030.0,109020.0,0.9471912]
[1752075300141,0.02711,109030.0,109020.0,0.9471912]
[1752075300341,0.63994,109030.0,109020.0,0.9700412]
[1752075300540,0.01182,109030.0,109020.0,1.1534892]
[1752075300943,0.01182,109030.0,109020.0,1.7816092]
[1752075301445,0.01182,109030.0,109020.0,2.0316092]
[1752075302244,0.01182,109030.0,109020.0,1.89088278]
[1752075302445,0.01182,109030.0,109020.0,1.90519119]
[1752075302749,0.01182,109030.0,109020.0,1.79590519]
[1752075303344,0.01182,109030.0,109020.0,1.90513839]
[1752075304146,0.01182,109030.0,109020.0,1.90513271]
[1752075304548,0.64549845,109040.0,109030.0,0.1834105]
[1752075304739,0.01729845,109040.0,109030.0,0.97791471]
[1752075305137,0.01729845,109040.0,109030.0,1.08714791]
[1752075305444,0.01729845,109040.0,109030.0,0.97791471]
[1752075305752,0.01729845,109040.0,109030.0,1.08814791]
[1752075305951,0.01829845,109040.0,109030.0,1.08814791]
[1752075306449,0.01829845,109040.0,109030.0,1.08914791]
[1752075306646,0.3209048,109060.0,109050.0,0.1833768]
[1752075306846,0.3209048,109060.0,109050.0,0.93492711]
[1752075306847,0.9488648,109060.0,109050.0,0.93492711]
[1752075307049,0.9641548,109060.0,109050.0,1.02044843]
[1752075307654,0.1833753,109060.0,109050.0,1.34208782]
[1752075307847,0.8114153,109060.0,109050.0,1.34208782]
[1752075308044,0.002,109060.0,109050.0,1.35011643]
[1752075308252,0.002,109060.0,109050.0,1.53350843]
[1752075308445,0.002,109060.0,109050.0,1.21540453]
[1752075308641,0.002,109060.0,109050.0,1.53350843]
[1752075309353,0.005,109060.0,109050.0,1.53450843]
[1752075309751,0.005,109060.0,109050.0,1.35111643]
[1752075309947,0.003,109060.0,109050.0,1.3509898]
[1752075310260,0.9489104,109070.0,109060.0,0.18336]
[1752075310554,0.9642604,109070.0,109060.0,0.637835]
[1752075311155,0.9489104,109070.0,109060.0,0.660665]
[1752075311457,0.9642604,109070.0,109060.0,0.660665]
[1752075311664,0.9489104,109070.0,109060.0,0.660665]
[1752075311949,0.9642604,109070.0,109060.0,0.661665]
[1752075313159,0.9642604,109070.0,109060.0,0.662665]
[1752075313354,0.918421,109070.0,109060.0,0.64863]
[1752075316749,0.918421,109070.0,109060.0,0.9667339]
[1752075317562,0.918421,109070.0,109060.0,0.64863]
[1752075318159,0.8725816,109070.0,109060.0,0.64863]
[1752075318355,0.32615715,109080.0,109070.0,0.1833433]
[1752075318659,0.93674715,109080.0,109070.0,0.98306683]
[1752075319066,0.93674715,109080.0,109070.0,0.66496293]
[1752075319265,0.93678715,109080.0,109070.0,0.66496293]
[1752075319557,0.93978715,109080.0,109070.0,0.66596293]
[1752075320664,1.25789105,109080.0,109070.0,0.66596293]
[1752075320854,1.25489105,109080.0,109070.0,0.62649293]
[1752075321053,1.30921105,109080.0,109070.0,0.62849293]
[1752075321258,1.30921105,109080.0,109070.0,0.64413293]
[1752075323162,1.30921105,109080.0,109070.0,0.61213293]
[1752075324266,0.99110715,109080.0,109070.0,0.61213293]
[1752075324564,1.30921105,109080.0,109070.0,0.61213293]
[1752075326470,1.33971105,109080.0,109070.0,0.61213293]
[1752075326766,1.33971105,109080.0,109070.0,0.58063293]
[1752075327966,1.33971105,109080.0,109070.0,0.59467906]
[1752075328373,1.02160715,109080.0,109070.0,0.59467906]
[1752075328572,1.33971105,109080.0,109070.0,0.59467906]
[1752075328963,1.02160715,109080.0,109070.0,0.59467906]
[1752075329272,1.33971105,109080.0,109070.0,0.59467906]
[1752075330874,1.02160715,109080.0,109070.0,0.59467906]
[1752075331169,1.33971105,109080.0,109070.0,0.59467906]
[1752075332066,1.33971105,109080.0,109070.0,0.59470716]
[1752075333370,0.6494478,109080.0,109070.0,0.62721085]
[1752075333573,0.9276439,109080.0,109070.0,0.62721085]
[1752075334972,1.2457478,109080.0,109070.0,0.62721085]
[1752075336671,1.2457478,109080.0,109070.0,0.66001085]
[1752075338576,1.2457478,109080.0,109070.0,0.62721085]
[1752075338776,1.5638517,109080.0,109070.0,0.39572755]
[1752075339079,1.63067606,109080.0,109070.0,0.39572755]
[1752075340475,1.63067606,109080.0,109070.0,0.57907085]
[1752075340675,1.63067606,109080.0,109070.0,0.57908753]
[1752075343074,1.63067606,109080.0,109070.0,0.39574423]
[1752075343977,1.64782334,109080.0,109070.0,0.3768946]
[1752075346477,0.1833435,109070.0,109060.0,0.3608]
[1752075346674,0.63941176,109070.0,109060.0,0.3608]
[1752075347074,0.63941176,109070.0,109050.0,0.3608]
[1752075347075,0.3208886,109060.0,109050.0,0.3608]
[1752075347378,1.3677725,109060.0,109050.0,0.3608]
[1752075348979,1.3687725,109060.0,109050.0,0.3658]
[1752075350481,1.3687725,109060.0,109050.0,0.3688]
[1752075352285,1.3688125,109060.0,109050.0,0.3688]
[1752075356377,1.6869164,109060.0,109050.0,0.008]
[1752075357587,1.6879164,109060.0,109050.0,0.004]
[1752075358395,1.72323955,109060.0,109050.0,0.004]
[1752075358685,1.72523955,109060.0,109050.0,0.001]
[1752075359280,1.72523955,109060.0,109050.0,0.3618]
[1752075359481,1.6899164,109060.0,109050.0,0.3618]
[1752075360686,1.3718125,109060.0,109050.0,0.3618]
[1752075360990,1.3718125,109060.0,109050.0,0.3929]
[1752075361792,0.7449325,109060.0,109050.0,0.3929]
[1752075361994,1.3718525,109060.0,109050.0,0.3929]
[1752075365097,1.3415525,109060.0,109050.0,0.3929]
[1752075368298,1.3415525,109060.0,109050.0,0.4243]
[1752075368689,1.37684051,109060.0,109050.0,0.4243]
[1752075368896,1.3415525,109060.0,109050.0,0.4243]
[1752075369198,1.37684773,109060.0,109050.0,0.4243]
[1752075369891,1.37684773,109060.0,109050.0,0.44018]
[1752075375498,1.37684773,109060.0,109050.0,0.6235571]
[1752075375701,1.37684773,109060.0,109050.0,0.44018]
[1752075378201,1.05874383,109060.0,109050.0,0.44018]
[1752075378402,1.37684773,109060.0,109050.0,0.44018]
[1752075379604,1.37684773,109060.0,109050.0,0.4243]
[1752075380702,1.69495163,109060.0,109050.0,0.4243]
[1752075382603,1.69495163,109060.0,109050.0,0.3618]
[1752075382998,1.72765163,109060.0,109050.0,0.3618]
[1752075384004,0.1833771,109050.0,109040.0,0.3923]
[1752075384304,0.92672074,109050.0,109040.0,0.3923]
[1752075384696,0.92672042,109050.0,109040.0,0.3923]
[1752075385207,0.92772042,109050.0,109040.0,0.3933]
[1752075386203,0.93072042,109050.0,109040.0,0.3933]
[1752075386404,0.93929465,109050.0,109040.0,0.3933]
[1752075387100,0.93929465,109050.0,109040.0,0.40881]
[1752075389208,0.93929465,109050.0,109040.0,0.3933]
[1752075389505,0.93929465,109050.0,109040.0,0.40881]
[1752075391207,0.93929465,109050.0,109040.0,0.3933]
[1752075391907,0.93929465,109050.0,109040.0,0.40881]
[1752075393108,0.93929465,109050.0,109040.0,0.44001]
[1752075396911,0.93940259,109050.0,109040.0,0.44001]
[1752075397713,0.93940259,109050.0,109040.0,0.6234039]
[1752075398012,0.93940259,109050.0,109040.0,0.44001]
[1752075405018,0.93940259,109050.0,109040.0,0.4245]
[1752075405519,0.93940259,109050.0,109040.0,0.3933]
[1752075405720,0.97090259,109050.0,109040.0,0.3933]
[1752075405918,1.28906046,109050.0,109040.0,0.3933]
[1752075406112,0.97090259,109050.0,109040.0,0.3933]
[1752075407822,1.28906046,109050.0,109040.0,0.3933]
[1752075408125,0.97090259,109050.0,109040.0,0.3933]
[1752075409830,0.93940259,109050.0,109040.0,0.3933]
[1752075410026,0.93940259,109050.0,109040.0,0.40913]
[1752075410321,0.93940259,109050.0,109040.0,0.3933]
[1752075411235,0.93940259,109050.0,109040.0,0.40913]
[1752075411621,0.93940259,109050.0,109040.0,0.44133]
[1752075412731,1.56616259,109050.0,109040.0,0.44133]
[1752075413134,1.56616259,109050.0,109040.0,0.4255]
[1752075413835,0.58899472,109050.0,109040.0,0.6247239]
[1752075414131,1.18414049,109050.0,109040.0,0.6473239]
[1752075415233,1.51085916,109050.0,109040.0,0.6247239]
[1752075415734,1.53389916,109050.0,109040.0,0.6247239]
[1752075416232,1.51741916,109050.0,109040.0,0.6247239]
[1752075418833,1.49437916,109050.0,109040.0,0.6247239]
[1752075419332,1.51741916,109050.0,109040.0,0.6247239]
[1752075419531,1.49437916,109050.0,109040.0,0.6088939]
[1752075419837,1.51741916,109050.0,109040.0,0.6247239]
[1752075420931,1.49437916,109050.0,109040.0,0.6247239]
[1752075422139,1.51741916,109050.0,109040.0,0.6247239]
[1752075422431,1.48581836,109050.0,109040.0,0.6247239]
[1752075422620,1.48581836,109050.0,109040.0,0.6473239]
[1752075422823,1.51756963,109050.0,109040.0,0.44133]
[1752075423225,1.54766963,109050.0,109040.0,0.3933]
[1752075423430,1.57976963,109050.0,109040.0,0.3933]
[1752075424036,1.57976963,109050.0,109040.0,0.3618]
[1752075424936,1.57985411,109050.0,109040.0,0.3618]
[1752075425736,1.57985411,109050.0,109040.0,0.3926]
[1752075426831,1.54448859,109050.0,109040.0,0.3926]
[1752075427435,1.57977444,109050.0,109040.0,0.3926]
[1752075431941,0.1833939,109040.0,109030.0,0.0312]
[1752075432131,0.60883986,109040.0,109030.0,0.0324]
[1752075432442,0.57355401,109040.0,109030.0,0.0324]
[1752075432736,0.60885508,109040.0,109030.0,0.0324]
[1752075432927,0.60885551,109040.0,109030.0,0.0324]
[1752075433734,0.60885551,109040.0,109030.0,0.04905]
[1752075433934,0.60985551,109040.0,109030.0,0.04905]
[1752075434142,0.60985551,109040.0,109030.0,0.0334]
[1752075434739,0.60985551,109040.0,109030.0,0.04905]
[1752075435637,0.97065551,109040.0,109030.0,0.0156501]
[1752075435936,0.97065551,109040.0,109030.0,1e-07]
[1752075436133,1.00335551,109040.0,109030.0,1e-07]
[1752075439136,0.64255551,109040.0,109030.0,1e-07]
[1752075439343,1.23051551,109040.0,109030.0,1e-07]
[1752075439533,1.26927551,109040.0,109030.0,1e-07]
[1752075439939,1.63007551,109040.0,109030.0,1e-07]
[1752075451837,1.63007551,109040.0,109030.0,0.0319001]
[1752075452850,2.26658409,109040.0,109030.0,0.0319001]
[1752075454147,0.85616786,109040.0,109030.0,0.4083501]
[1752075454450,1.49866786,109040.0,109030.0,0.4389501]
[1752075454848,1.52160786,109040.0,109030.0,0.6223608]
[1752075455445,0.87198786,109040.0,109030.0,0.94059703]
[1752075455652,0.87198786,109040.0,109030.0,0.96463703]
[1752075455653,1.49866786,109040.0,109030.0,0.96463703]
[1752075455951,1.49866786,109040.0,109030.0,0.6464008]
[1752075456150,1.46336636,109040.0,109030.0,0.6464008]
[1752075456948,1.14501488,109040.0,109030.0,0.6464008]
[1752075457149,0.51833488,109040.0,109030.0,0.66044153]
[1752075457349,1.14501488,109040.0,109030.0,0.66044153]
[1752075459151,1.14501488,109040.0,109030.0,0.6464008]
[1752075459348,0.2002139,109040.0,109030.0,0.6464008]
[1752075459647,0.8110339,109040.0,109030.0,1.14794578]
[1752075460449,0.001,109040.0,109030.0,1.25759102]
[1752075460654,0.001,109040.0,109030.0,1.49092102]
[1752075460848,0.3209274,109050.0,109040.0,0.1833939]
[1752075460849,0.855872,109050.0,109040.0,0.1833939]
[1752075461055,0.855872,109050.0,109040.0,0.94276488]
[1752075461353,0.855872,109050.0,109040.0,1.12617288]
[1752075461655,0.855872,109050.0,109040.0,0.8080519]
[1752075462354,0.855872,109050.0,109040.0,0.81691167]
[1752075462655,0.857872,109050.0,109040.0,0.8080519]
[1752075462855,0.860872,109050.0,109040.0,0.8090519]
[1752075463757,0.860872,109050.0,109040.0,0.8080519]
[1752075463758,0.857872,109050.0,109040.0,0.8080519]
[1752075464050,0.858872,109050.0,109040.0,0.8090519]
[1752075464257,0.858872,109050.0,109040.0,0.8320719]
[1752075464756,0.856872,109050.0,109040.0,0.8320719]
[1752075467553,0.856872,109050.0,109040.0,0.44225]
[1752075467554,1.21544298,109050.0,109040.0,0.44225]
[1752075467759,1.53356396,109050.0,109040.0,0.4258]
[1752075468162,1.56486396,109050.0,109040.0,0.44225]
[1752075468360,1.24674298,109050.0,109040.0,0.44225]
[1752075468754,1.24674298,109050.0,109040.0,0.4258]
[1752075469060,1.24674298,109050.0,109040.0,0.3926]
[1752075469256,1.27684298,109050.0,109040.0,0.5759939]
[1752075469457,1.27684298,109050.0,109040.0,0.5924439]
[1752075470161,1.27684298,109050.0,109040.0,0.5759939]
[1752075470462,1.27684298,109050.0,109040.0,0.5924439]
[1752075470661,1.59496396,109050.0,109040.0,0.001]
[1752075472358,0.1833939,109040.0,109030.0,0.3608]
[1752075472662,0.60636488,109040.0,109030.0,0.3608]
[1752075473361,0.60736488,109040.0,109030.0,0.3618]
[1752075473960,0.60736488,109040.0,109030.0,0.001]
[1752075478165,0.60736488,109040.0,109030.0,0.3618]
[1752075478465,0.60736488,109040.0,109030.0,0.001]
[1752075481064,0.6427351,109040.0,109030.0,0.001]
[1752075481565,1.2692551,109040.0,109030.0,0.01745]
[1752075485967,1.2692551,109040.0,109030.0,0.001]
[1752075487271,1.2692551,109040.0,109030.0,0.01513015]
[1752075488569,1.2288051,109040.0,109030.0,0.01513015]
[1752075488769,1.2525651,109040.0,109030.0,0.01513015]
[1752075489758,1.57068608,109040.0,109030.0,0.01513015]
[1752075490461,1.2525651,109040.0,109030.0,0.01513015]
[1752075490662,1.57068608,109040.0,109030.0,0.01513015]
[1752075492070,1.54692608,109040.0,109030.0,0.01513015]
[1752075492271,1.57068608,109040.0,109030.0,0.01513015]
[1752075493666,1.2525651,109040.0,109030.0,0.01513015]
[1752075494873,1.93148608,109040.0,109030.0,0.01513015]
[1752075496973,1.90772608,109040.0,109030.0,0.01513015]
[1752075497167,1.93148608,109040.0,109030.0,0.01513015]
[1752075501675,1.93148608,109040.0,109030.0,0.01519664]
[1752075502474,3.20008608,109040.0,109030.0,0.01519664]
[1752075503476,0.1834275,109020.0,109010.0,0.4273]
[1752075503676,1.44622946,109020.0,109010.0,0.44352]
[1752075503977,1.4877174,109020.0,109010.0,0.44352]
[1752075505578,1.4887174,109020.0,109010.0,0.44752]
[1752075505878,1.4887174,109020.0,109010.0,0.45052]
[1752075506473,1.4973559,109020.0,109010.0,0.45052]
[1752075506674,1.57213163,109020.0,109010.0,0.45052]
[1752075506874,1.57213163,109020.0,109010.0,0.4343]
[1752075507376,1.57213163,109020.0,109010.0,0.3678]
[1752075507571,1.6720534,109020.0,109010.0,0.3678]
[1752075507766,1.6720534,109020.0,109010.0,0.007]
[1752075507979,2.0328534,109020.0,109010.0,0.007]
[1752075508977,2.0328534,109020.0,109010.0,0.004]
[1752075509580,2.0328534,109020.0,109000.0,0.06283478]
[1752075509581,0.1834443,109010.0,109000.0,0.06283478]
[1752075509877,0.57408528,109010.0,109000.0,0.06283478]
[1752075510073,0.60498528,109010.0,109000.0,0.06283478]
[1752075510274,0.96578528,109010.0,109000.0,0.00183478]
[1752075510579,0.96678528,109010.0,109000.0,0.00483478]
[1752075510974,1.0023148,109010.0,109000.0,0.00483478]
[1752075511874,1.32043578,109010.0,109000.0,8e-08]
[1752075512480,1.32043578,109010.0,109000.0,0.00200008]
[1752075513076,1.0013148,109010.0,109000.0,0.002]
[1752075513371,1.0013148,109010.0,109000.0,0.003]
[1752075513372,1.0023148,109010.0,109000.0,0.003]
[1752075513682,1.0023148,109010.0,109000.0,0.001]
[1752075515583,1.0023148,109010.0,109000.0,0.01505269]
[1752075516579,0.1834611,109000.0,108990.0,0.06563495]
[1752075516782,1.51515715,109000.0,108990.0,0.07968412]
[1752075517079,1.89971715,109000.0,108990.0,0.07968412]
[1752075517674,1.89971715,109000.0,108990.0,0.06563495]
[1752075518069,1.86418763,109000.0,108990.0,0.06563495]
[1752075518271,1.86418763,109000.0,108990.0,0.00183495]
[1752075518469,1.92728763,109000.0,108990.0,0.00183495]
[1752075518674,1.92728763,109000.0,108990.0,0.00383495]
[1752075519082,1.92728763,109000.0,108980.0,0.4226]
[1752075519083,0.183478,108990.0,108980.0,0.4226]
[1752075519285,0.183478,108990.0,108980.0,0.42025437]
[1752075519286,0.82170877,108990.0,108980.0,0.42025437]
[1752075519581,0.86069877,108990.0,108980.0,0.42025437]
[1752075520271,0.86069877,108990.0,108980.0,0.0618]
[1752075521281,0.92319877,108990.0,108980.0,0.0618]
[1752075521582,0.92419877,108990.0,108980.0,0.0638]
[1752075522278,0.92419877,108990.0,108980.0,0.0648]
[1752075522480,1.51964175,108990.0,108960.0,0.36263545]
[1752075522681,1.18055356,108970.0,108960.0,0.06463545]
[1752075522885,0.88630295,108970.0,108960.0,0.08103545]
[1752075523579,0.90241295,108970.0,108960.0,0.08103545]
[1752075523781,0.90241295,108970.0,108960.0,0.08403545]
[1752075523982,0.88630295,108970.0,108960.0,0.08403545]
[1752075524175,0.90341295,108970.0,108960.0,0.08803545]
[1752075524685,0.88730295,108970.0,108960.0,0.08803545]
[1752075524887,0.89615293,108970.0,108960.0,0.08803545]
[1752075525086,0.91226293,108970.0,108960.0,0.08803545]
[1752075525286,0.91226293,108970.0,108960.0,0.07063545]
[1752075525990,1.23038391,108970.0,108960.0,0.00783545]
[1752075526189,1.29498391,108970.0,108960.0,0.00783545]
[1752075526392,1.29498391,108970.0,108960.0,5e-08]
[1752075526576,0.1835285,108960.0,108950.0,0.06373562]
[1752075526887,1.55235083,108960.0,108950.0,0.06373562]
[1752075527080,1.55235083,108960.0,108950.0,0.03223562]
[1752075527281,1.55235083,108960.0,108950.0,0.00183562]
[1752075527487,0.1835454,108950.0,108940.0,0.3608]
[1752075527783,0.1835454,108950.0,108920.0,0.00183613]
[1752075527784,0.183579,108930.0,108920.0,0.00183613]
[1752075527992,1.50493208,108930.0,108920.0,0.00183613]
[1752075528175,1.50493208,108930.0,108920.0,0.03503613]
[1752075528376,1.93093208,108930.0,108920.0,0.03503613]
[1752075528577,0.1835959,108920.0,108910.0,0.39403629]
[1752075528786,0.54070688,108920.0,108910.0,0.39403629]
[1752075529089,0.60689725,108920.0,108910.0,0.39403629]
[1752075529787,0.57579725,108920.0,108910.0,0.41143629]
[1752075529985,0.52658725,108920.0,108910.0,0.44193629]
[1752075530186,0.50370725,108920.0,108910.0,0.44193629]
[1752075530382,0.54269725,108920.0,108910.0,0.44193629]
[1752075530585,0.54269725,108920.0,108910.0,0.36363629]
[1752075530789,0.60699725,108920.0,108910.0,0.36363629]
[1752075531796,0.60999725,108920.0,108910.0,0.39413629]
[1752075531992,0.60999725,108920.0,108910.0,0.42453629]
[1752075532187,0.60999725,108920.0,108910.0,0.00283629]
[1752075532188,0.86381823,108920.0,108910.0,0.00283629]
[1752075532388,1.28891823,108920.0,108910.0,0.00283629]
[1752075532589,0.20082253,108910.0,108900.0,0.0327]
[1752075532790,1.85830449,108910.0,108900.0,0.0327]
[1752075533094,1.85929486,108910.0,108900.0,0.0327]